[Event "*** SCC Grand Prix: Titled Tuesday Blitz"]
[Site "Chess.com"]
[Date "2020.07.14"]
[Round "2"]
[White "kasparicy"]
[Black "Artem_Sadovsky"]
[Result "0-1"]
[WhiteElo "2292"]
[BlackElo "2547"]
[TimeControl "180+1"]
[EndTime "10:18:46 PDT"]
[Termination "Artem_Sadovsky won on time"]

1. e4 {[%clk 0:03:00.9]} 1... c6 {[%clk 0:02:27.7]} 2. d4 {[%clk 0:02:58.6]}
2... d5 {[%clk 0:02:27]} 3. f3 {[%clk 0:02:59]} 3... dxe4 {[%clk 0:02:25.6]} 4.
fxe4 {[%clk 0:02:59.9]} 4... e5 {[%clk 0:02:25.4]} 5. Nf3 {[%clk 0:03:00.3]}
5... exd4 {[%clk 0:02:24.8]} 6. Bc4 {[%clk 0:02:58.6]} 6... Nf6 {[%clk
0:02:25.3]} 7. O-O {[%clk 0:02:58]} 7... Be7 {[%clk 0:02:06.9]} 8. Ng5 {[%clk
0:02:56.4]} 8... O-O {[%clk 0:02:06.5]} 9. Nxf7 {[%clk 0:02:56.2]} 9... Qa5
{[%clk 0:01:45.7]} 10. Qe2 {[%clk 0:01:53]} 10... Nbd7 {[%clk 0:00:50]} 11. Nd2
{[%clk 0:01:21.3]} 11... Rxf7 {[%clk 0:00:45.4]} 12. Bxf7+ {[%clk 0:01:18.2]}
12... Kxf7 {[%clk 0:00:46.3]} 13. Nc4 {[%clk 0:01:18.7]} 13... Qc5 {[%clk
0:00:37.6]} 14. Kh1 {[%clk 0:01:17.9]} 14... Ne5 {[%clk 0:00:27.4]} 15. Nxe5+
{[%clk 0:01:12.3]} 15... Qxe5 {[%clk 0:00:28.3]} 16. Bf4 {[%clk 0:01:12.8]}
16... Qxe4 {[%clk 0:00:26.1]} 17. Qxe4 {[%clk 0:01:05.3]} 17... Nxe4 {[%clk
0:00:27]} 18. Rae1 {[%clk 0:01:05.6]} 18... Nf6 {[%clk 0:00:26.5]} 19. Be5
{[%clk 0:01:05.9]} 19... Be6 {[%clk 0:00:26.4]} 20. Bxd4 {[%clk 0:01:05.7]}
20... Bd5 {[%clk 0:00:21.5]} 21. b3 {[%clk 0:01:03.6]} 21... Re8 {[%clk
0:00:16.4]} 22. c4 {[%clk 0:01:01.2]} 22... Be6 {[%clk 0:00:16.7]} 23. Bxa7
{[%clk 0:01:01.4]} 23... Bb4 {[%clk 0:00:17.1]} 24. Re2 {[%clk 0:00:57.6]} 24...
Kg6 {[%clk 0:00:15.1]} 25. h3 {[%clk 0:00:49.3]} 25... Bf7 {[%clk 0:00:15.4]}
26. Rxe8 {[%clk 0:00:48.4]} 26... Bxe8 {[%clk 0:00:15.7]} 27. Bb8 {[%clk
0:00:38.6]} 27... Bd7 {[%clk 0:00:15.4]} 28. Kh2 {[%clk 0:00:38.2]} 28... Ne4
{[%clk 0:00:14.8]} 29. Rd1 {[%clk 0:00:35.8]} 29... Nf6 {[%clk 0:00:12.7]} 30.
Bd6 {[%clk 0:00:34.8]} 30... Bxd6+ {[%clk 0:00:11.8]} 31. Rxd6 {[%clk
0:00:35.7]} 31... Kf7 {[%clk 0:00:12.2]} 32. g4 {[%clk 0:00:35]} 32... Ke7
{[%clk 0:00:12.6]} 33. Rd2 {[%clk 0:00:34.6]} 33... Be6 {[%clk 0:00:13.4]} 34.
Kg2 {[%clk 0:00:34.6]} 34... Nd7 {[%clk 0:00:14]} 35. Kf3 {[%clk 0:00:32.5]}
35... Ne5+ {[%clk 0:00:13.7]} 36. Ke4 {[%clk 0:00:29.3]} 36... Nf7 {[%clk
0:00:14.6]} 37. Kf4 {[%clk 0:00:27.6]} 37... g5+ {[%clk 0:00:13.4]} 38. Ke3
{[%clk 0:00:26]} 38... c5 {[%clk 0:00:12.9]} 39. a4 {[%clk 0:00:23.2]} 39... b6
{[%clk 0:00:12.7]} 40. Ra2 {[%clk 0:00:22.6]} 40... Ne5 {[%clk 0:00:05.3]} 41.
a5 {[%clk 0:00:21.6]} 41... bxa5 {[%clk 0:00:06.2]} 42. Rxa5 {[%clk 0:00:21.1]}
42... Kd6 {[%clk 0:00:07.1]} 43. Ra6+ {[%clk 0:00:20.5]} 43... Nc6 {[%clk
0:00:06.8]} 44. Ke4 {[%clk 0:00:17.9]} 44... Bc8 {[%clk 0:00:05.6]} 45. Ra8
{[%clk 0:00:17.2]} 45... Kc7 {[%clk 0:00:04.4]} 46. Ra1 {[%clk 0:00:13.2]} 46...
Nd4 {[%clk 0:00:04.3]} 47. Rb1 {[%clk 0:00:09.5]} 47... Kd6 {[%clk 0:00:02.8]}
48. b4 {[%clk 0:00:08.1]} 48... Bb7+ {[%clk 0:00:03.1]} 49. Ke3 {[%clk
0:00:04.6]} 49... Bc6 {[%clk 0:00:04]} 50. b5 {[%clk 0:00:04.5]} 50... Bb7
{[%clk 0:00:04.3]} 51. Ra1 {[%clk 0:00:04.8]} 51... Nc2+ {[%clk 0:00:04.5]} 52.
Kd3 {[%clk 0:00:03.6]} 52... Nd4 {[%clk 0:00:05.4]} 0-1

[Event "*** SCC Grand Prix: Titled Tuesday Blitz"]
[Site "Chess.com"]
[Date "2020.07.14"]
[Round "2"]
[White "Carnivoras"]
[Black "Kensei26"]
[Result "1-0"]
[WhiteElo "2600"]
[BlackElo "2209"]
[TimeControl "180+1"]
[EndTime "10:18:47 PDT"]
[Termination "Carnivoras won on time"]

1. d4 {[%clk 0:03:00.9]} 1... Nf6 {[%clk 0:02:59.4]} 2. Nf3 {[%clk 0:03:00.8]}
2... g6 {[%clk 0:02:58.6]} 3. c4 {[%clk 0:02:59.3]} 3... c5 {[%clk 0:02:57.3]}
4. d5 {[%clk 0:02:58.6]} 4... Bg7 {[%clk 0:02:55.9]} 5. Nc3 {[%clk 0:02:58.4]}
5... d6 {[%clk 0:02:49.7]} 6. e4 {[%clk 0:02:58.1]} 6... O-O {[%clk 0:02:47.6]}
7. Be2 {[%clk 0:02:58.6]} 7... e6 {[%clk 0:02:46.2]} 8. O-O {[%clk 0:02:58]}
8... exd5 {[%clk 0:02:41.9]} 9. exd5 {[%clk 0:02:58.9]} 9... Re8 {[%clk
0:02:38.5]} 10. Bg5 {[%clk 0:02:52.4]} 10... h6 {[%clk 0:02:35.8]} 11. Bh4
{[%clk 0:02:52.4]} 11... g5 {[%clk 0:02:34.1]} 12. Bg3 {[%clk 0:02:52.5]} 12...
Nh5 {[%clk 0:02:33.3]} 13. Nd2 {[%clk 0:02:44.2]} 13... Nxg3 {[%clk 0:02:32.5]}
14. hxg3 {[%clk 0:02:44.6]} 14... Qb6 {[%clk 0:02:32.9]} 15. Rb1 {[%clk
0:02:42]} 15... Nd7 {[%clk 0:02:32.1]} 16. Bg4 {[%clk 0:02:32.6]} 16... Nf6
{[%clk 0:02:31.3]} 17. Bxc8 {[%clk 0:02:31.9]} 17... Raxc8 {[%clk 0:02:27]} 18.
Qc2 {[%clk 0:02:32.1]} 18... a6 {[%clk 0:02:20.4]} 19. Rfe1 {[%clk 0:02:30.5]}
19... Qc7 {[%clk 0:02:18.3]} 20. b3 {[%clk 0:02:24.4]} 20... Qd7 {[%clk
0:02:18.1]} 21. a4 {[%clk 0:02:23.5]} 21... Qg4 {[%clk 0:02:10.8]} 22. Qd3
{[%clk 0:02:02.9]} 22... Qd4 {[%clk 0:02:04.3]} 23. Qxd4 {[%clk 0:02:02.8]}
23... cxd4 {[%clk 0:02:03.8]} 24. Nce4 {[%clk 0:02:03.1]} 24... Nxe4 {[%clk
0:02:02.7]} 25. Nxe4 {[%clk 0:02:04]} 25... Red8 {[%clk 0:01:51.2]} 26. g4
{[%clk 0:02:03.9]} 26... b5 {[%clk 0:01:46.8]} 27. cxb5 {[%clk 0:01:56.2]} 27...
axb5 {[%clk 0:01:46.9]} 28. a5 {[%clk 0:01:56.1]} 28... b4 {[%clk 0:01:46.6]}
29. Rec1 {[%clk 0:01:37.2]} 29... Rxc1+ {[%clk 0:01:38.8]} 30. Rxc1 {[%clk
0:01:35.6]} 30... Ra8 {[%clk 0:01:39.4]} 31. Ra1 {[%clk 0:01:21.9]} 31... d3
{[%clk 0:01:39.3]} 32. Ra2 {[%clk 0:01:17]} 32... Rc8 {[%clk 0:01:38.1]} 33. Rd2
{[%clk 0:01:11.9]} 33... Rc3 {[%clk 0:01:34.1]} 34. Ra2 {[%clk 0:00:45.7]} 34...
Rc2 {[%clk 0:01:32.8]} 35. Ra4 {[%clk 0:00:42.1]} 35... Be5 {[%clk 0:01:31.1]}
36. g3 {[%clk 0:00:39.4]} 36... Bd4 {[%clk 0:01:28.7]} 37. a6 {[%clk 0:00:38.7]}
37... Ba7 {[%clk 0:01:27.5]} 38. Rxb4 {[%clk 0:00:38]} 38... Re2 {[%clk
0:01:21.6]} 39. Kf1 {[%clk 0:00:36.5]} 39... Ra2 {[%clk 0:01:16.9]} 40. Rb7
{[%clk 0:00:36.3]} 40... Rxa6 {[%clk 0:01:16.4]} 41. b4 {[%clk 0:00:27.7]} 41...
Ra1+ {[%clk 0:01:15.6]} 42. Kg2 {[%clk 0:00:27.7]} 42... Bd4 {[%clk 0:01:14.1]}
43. Rc7 {[%clk 0:00:14.3]} 43... Ra2 {[%clk 0:01:12.3]} 44. Rc4 {[%clk
0:00:13.4]} 44... Bb6 {[%clk 0:01:03.3]} 45. Kf3 {[%clk 0:00:13.9]} 45... Rc2
{[%clk 0:01:01.7]} 46. Rc6 {[%clk 0:00:13]} 46... Rb2 {[%clk 0:00:58.1]} 47.
Rxb6 {[%clk 0:00:12.8]} 47... d2 {[%clk 0:00:58.1]} 48. Ke2 {[%clk 0:00:12.6]}
48... h5 {[%clk 0:00:58.4]} 49. Nxd2 {[%clk 0:00:12.4]} 49... h4 {[%clk
0:00:58.1]} 50. gxh4 {[%clk 0:00:12.2]} 50... gxh4 {[%clk 0:00:58.6]} 51. Rxd6
{[%clk 0:00:12.7]} 51... h3 {[%clk 0:00:58.9]} 52. Rh6 {[%clk 0:00:12.3]} 52...
Rxb4 {[%clk 0:00:58.1]} 53. Rxh3 {[%clk 0:00:12.6]} 53... Rd4 {[%clk 0:00:58.3]}
54. Rd3 {[%clk 0:00:12.5]} 54... Rxg4 {[%clk 0:00:58.2]} 55. Rg3 {[%clk
0:00:12.5]} 55... Rxg3 {[%clk 0:00:57.6]} 56. fxg3 {[%clk 0:00:13.4]} 56... Kf8
{[%clk 0:00:58.1]} 57. Kf3 {[%clk 0:00:14]} 57... Ke7 {[%clk 0:00:59]} 58. Ke4
{[%clk 0:00:14.9]} 58... Kd6 {[%clk 0:00:59.9]} 59. Nf3 {[%clk 0:00:15.2]} 59...
f5+ {[%clk 0:01:00.8]} 60. Kd4 {[%clk 0:00:15.2]} 60... f4 {[%clk 0:01:00.6]}
61. gxf4 {[%clk 0:00:15.4]} 1-0

[Event "*** SCC Grand Prix: Titled Tuesday Blitz"]
[Site "Chess.com"]
[Date "2020.07.14"]
[Round "2"]
[White "Azatic"]
[Black "Maaikee"]
[Result "1-0"]
[WhiteElo "2615"]
[BlackElo "2309"]
[TimeControl "180+1"]
[EndTime "10:18:49 PDT"]
[Termination "Azatic won by checkmate"]

1. e4 {[%clk 0:03:00.9]} 1... e6 {[%clk 0:02:59.6]} 2. Qe2 {[%clk 0:03:00.3]}
2... c5 {[%clk 0:02:59]} 3. Nf3 {[%clk 0:03:00.2]} 3... Nc6 {[%clk 0:02:59.2]}
4. g3 {[%clk 0:03:00.5]} 4... Nf6 {[%clk 0:02:58.5]} 5. Bg2 {[%clk 0:03:00.4]}
5... d5 {[%clk 0:02:58.8]} 6. d3 {[%clk 0:02:59.5]} 6... Be7 {[%clk 0:02:54.1]}
7. O-O {[%clk 0:02:59.3]} 7... O-O {[%clk 0:02:54.3]} 8. Re1 {[%clk 0:02:51.3]}
8... b5 {[%clk 0:02:50.2]} 9. Nbd2 {[%clk 0:02:49.2]} 9... Bb7 {[%clk
0:02:45.6]} 10. e5 {[%clk 0:02:48.7]} 10... Nd7 {[%clk 0:02:43.3]} 11. Nf1
{[%clk 0:02:49.3]} 11... a5 {[%clk 0:02:38.9]} 12. h4 {[%clk 0:02:39]} 12... a4
{[%clk 0:02:20.7]} 13. h5 {[%clk 0:02:37.9]} 13... h6 {[%clk 0:02:16.2]} 14.
N1h2 {[%clk 0:02:37.5]} 14... b4 {[%clk 0:02:07.1]} 15. Ng4 {[%clk 0:02:32]}
15... Kh7 {[%clk 0:01:57]} 16. Qd2 {[%clk 0:02:25.9]} 16... Nd4 {[%clk
0:01:22.7]} 17. Nxd4 {[%clk 0:01:58.9]} 17... cxd4 {[%clk 0:01:23.6]} 18. Qf4
{[%clk 0:01:59]} 18... Qb6 {[%clk 0:01:18.5]} 19. Nxh6 {[%clk 0:01:54.2]} 19...
gxh6 {[%clk 0:01:14.1]} 20. Qxh6+ {[%clk 0:01:55.1]} 20... Kg8 {[%clk
0:01:14.6]} 21. Bg5 {[%clk 0:01:55.1]} 21... Bxg5 {[%clk 0:00:59.4]} 22. Qxg5+
{[%clk 0:01:56]} 22... Kh7 {[%clk 0:01:00]} 23. h6 {[%clk 0:01:54.4]} 23... Rg8
{[%clk 0:00:59.8]} 24. Qe7 {[%clk 0:01:53.6]} 24... Rad8 {[%clk 0:00:40.5]} 25.
Qxf7+ {[%clk 0:01:44.8]} 25... Kh8 {[%clk 0:00:39.5]} 26. Bh3 {[%clk 0:01:31.7]}
26... Bc8 {[%clk 0:00:24.5]} 27. Qxe6 {[%clk 0:00:56]} 27... Qxe6 {[%clk
0:00:21.4]} 28. Bxe6 {[%clk 0:00:56.9]} 28... Rge8 {[%clk 0:00:21.1]} 29. Bxd5
{[%clk 0:00:46.8]} 29... Rxe5 {[%clk 0:00:19]} 30. Bc6 {[%clk 0:00:25.7]} 30...
a3 {[%clk 0:00:12.6]} 31. bxa3 {[%clk 0:00:25]} 31... bxa3 {[%clk 0:00:13.5]}
32. Rab1 {[%clk 0:00:21.9]} 32... Rxe1+ {[%clk 0:00:11.1]} 33. Rxe1 {[%clk
0:00:22.8]} 33... Nf6 {[%clk 0:00:11]} 34. Re7 {[%clk 0:00:18.6]} 34... Bd7
{[%clk 0:00:07.6]} 35. Bf3 {[%clk 0:00:18.1]} 35... Re8 {[%clk 0:00:07.6]} 36.
Rf7 {[%clk 0:00:17.8]} 36... Re1+ {[%clk 0:00:07.1]} 37. Kg2 {[%clk 0:00:17.4]}
37... Re6 {[%clk 0:00:06.4]} 38. g4 {[%clk 0:00:12.6]} 38... Bc6 {[%clk
0:00:05.8]} 39. g5 {[%clk 0:00:10.8]} 39... Bxf3+ {[%clk 0:00:05]} 40. Kxf3
{[%clk 0:00:11.7]} 40... Ng8 {[%clk 0:00:04.3]} 41. Kg4 {[%clk 0:00:06.4]} 41...
Ne7 {[%clk 0:00:04.4]} 42. f4 {[%clk 0:00:05.6]} 42... Kg8 {[%clk 0:00:04.4]}
43. Rg7+ {[%clk 0:00:06]} 43... Kh8 {[%clk 0:00:04.9]} 44. f5 {[%clk 0:00:06.4]}
44... Re1 {[%clk 0:00:05.2]} 45. f6 {[%clk 0:00:04.8]} 45... Rg1+ {[%clk
0:00:05.4]} 46. Kh5 {[%clk 0:00:04.1]} 46... Rh1+ {[%clk 0:00:05.8]} 47. Kg4
{[%clk 0:00:04]} 47... Rg1+ {[%clk 0:00:06.7]} 48. Kf3 {[%clk 0:00:04.3]} 48...
Nf5 {[%clk 0:00:05.3]} 49. f7 {[%clk 0:00:04.8]} 49... Rf1+ {[%clk 0:00:03.4]}
50. Kg2 {[%clk 0:00:02.4]} 50... Ne3+ {[%clk 0:00:03.7]} 51. Kh3 {[%clk
0:00:02.7]} 51... Rf3+ {[%clk 0:00:03.9]} 52. Kh2 {[%clk 0:00:02.8]} 52... Rf2+
{[%clk 0:00:04.4]} 53. Kg3 {[%clk 0:00:02.9]} 53... Rg2+ {[%clk 0:00:04.7]} 54.
Kf3 {[%clk 0:00:03.8]} 54... Rg1 {[%clk 0:00:04.8]} 55. f8=Q# {[%clk 0:00:03.7]}
1-0

[Event "*** SCC Grand Prix: Titled Tuesday Blitz"]
[Site "Chess.com"]
[Date "2020.07.14"]
[Round "2"]
[White "Oligan22"]
[Black "fabianvivasz"]
[Result "1-0"]
[WhiteElo "2451"]
[BlackElo "2254"]
[TimeControl "180+1"]
[EndTime "10:18:50 PDT"]
[Termination "Oligan22 won on time"]

1. e4 {[%clk 0:03:00.9]} 1... e5 {[%clk 0:02:59]} 2. Nf3 {[%clk 0:03:00.8]} 2...
Nc6 {[%clk 0:02:57.8]} 3. Bb5 {[%clk 0:03:00.7]} 3... f5 {[%clk 0:02:57.6]} 4.
Nc3 {[%clk 0:02:55.9]} 4... fxe4 {[%clk 0:02:57.4]} 5. Nxe4 {[%clk 0:02:56.8]}
5... Nf6 {[%clk 0:02:58.1]} 6. Qe2 {[%clk 0:02:51.9]} 6... d5 {[%clk 0:02:56.1]}
7. Ng3 {[%clk 0:02:38.5]} 7... Bd6 {[%clk 0:02:35.9]} 8. d3 {[%clk 0:02:23.5]}
8... O-O {[%clk 0:02:29.5]} 9. Bxc6 {[%clk 0:02:17]} 9... bxc6 {[%clk
0:02:29.1]} 10. O-O {[%clk 0:02:08.7]} 10... Bg4 {[%clk 0:02:27.8]} 11. h3
{[%clk 0:02:08.4]} 11... Bxf3 {[%clk 0:02:19.9]} 12. Qxf3 {[%clk 0:02:09.3]}
12... e4 {[%clk 0:02:18.1]} 13. Qe2 {[%clk 0:01:45.6]} 13... Bxg3 {[%clk
0:01:58.8]} 14. fxg3 {[%clk 0:01:46.5]} 14... exd3 {[%clk 0:01:58.5]} 15. cxd3
{[%clk 0:01:38.8]} 15... Qd6 {[%clk 0:01:46.7]} 16. Bf4 {[%clk 0:01:37.4]} 16...
Qc5+ {[%clk 0:01:45.4]} 17. Kh2 {[%clk 0:01:36.4]} 17... Rae8 {[%clk 0:01:43.6]}
18. Qd2 {[%clk 0:01:35.5]} 18... Rf7 {[%clk 0:01:30.3]} 19. Rac1 {[%clk
0:01:34.4]} 19... Qb5 {[%clk 0:01:20.9]} 20. Qc2 {[%clk 0:01:31.7]} 20... Re6
{[%clk 0:01:18]} 21. Rfe1 {[%clk 0:01:30.9]} 21... Rxe1 {[%clk 0:01:09.9]} 22.
Rxe1 {[%clk 0:01:31.8]} 22... h6 {[%clk 0:01:01.5]} 23. Rc1 {[%clk 0:01:17.2]}
23... Nh5 {[%clk 0:00:50.5]} 24. Qxc6 {[%clk 0:01:07.4]} 24... Qxc6 {[%clk
0:00:10.9]} 25. Rxc6 {[%clk 0:01:08.3]} 25... Nxf4 {[%clk 0:00:11.1]} 26. gxf4
{[%clk 0:01:08.7]} 26... Rxf4 {[%clk 0:00:11.7]} 27. Rxc7 {[%clk 0:01:07.7]}
27... Rf2 {[%clk 0:00:11.8]} 28. Rb7 {[%clk 0:00:56.2]} 28... a6 {[%clk
0:00:09.7]} 29. a3 {[%clk 0:00:48.4]} 29... Rd2 {[%clk 0:00:09]} 30. Rb6 {[%clk
0:00:40.3]} 30... Rxd3 {[%clk 0:00:08.7]} 31. Rxa6 {[%clk 0:00:22.6]} 31... Rb3
{[%clk 0:00:08.8]} 32. Rd6 {[%clk 0:00:22]} 32... Rxb2 {[%clk 0:00:09.1]} 33.
Rxd5 {[%clk 0:00:21.9]} 33... Rb3 {[%clk 0:00:08.8]} 34. a4 {[%clk 0:00:20.1]}
34... Ra3 {[%clk 0:00:09]} 35. a5 {[%clk 0:00:20.5]} 35... Kf7 {[%clk
0:00:09.5]} 36. Rb5 {[%clk 0:00:20.6]} 36... Kg6 {[%clk 0:00:06.9]} 37. h4
{[%clk 0:00:20.6]} 37... Kf6 {[%clk 0:00:06.9]} 38. g3 {[%clk 0:00:20.7]} 38...
g6 {[%clk 0:00:07]} 39. Kh3 {[%clk 0:00:21]} 39... h5 {[%clk 0:00:07.6]} 40.
Rb6+ {[%clk 0:00:20]} 40... Kf5 {[%clk 0:00:08]} 41. Rb5+ {[%clk 0:00:20.1]}
41... Ke6 {[%clk 0:00:07.8]} 42. Kg2 {[%clk 0:00:18.7]} 42... Kf6 {[%clk
0:00:08]} 43. Rg5 {[%clk 0:00:18.2]} 43... Kf7 {[%clk 0:00:07.1]} 44. Kf2 {[%clk
0:00:18.4]} 44... Kf6 {[%clk 0:00:07.4]} 45. Ke2 {[%clk 0:00:18.9]} 45... Kf7
{[%clk 0:00:07.1]} 46. Kd2 {[%clk 0:00:19.3]} 46... Kf6 {[%clk 0:00:05.8]} 47.
Kc2 {[%clk 0:00:19.8]} 47... Ra2+ {[%clk 0:00:04.6]} 48. Kb3 {[%clk 0:00:19.6]}
48... Ra1 {[%clk 0:00:04.4]} 49. Kb4 {[%clk 0:00:19.7]} 49... Kf7 {[%clk
0:00:04.3]} 50. Kb5 {[%clk 0:00:19.5]} 50... Rb1+ {[%clk 0:00:04.2]} 51. Kc6
{[%clk 0:00:19.3]} 51... Re1 {[%clk 0:00:04.3]} 52. a6 {[%clk 0:00:17.8]} 52...
Re6+ {[%clk 0:00:04.8]} 53. Kb5 {[%clk 0:00:16.7]} 53... Re7 {[%clk 0:00:04.5]}
54. Rc5 {[%clk 0:00:15.9]} 54... Kf6 {[%clk 0:00:04.2]} 55. Kb6 {[%clk
0:00:15.8]} 55... g5 {[%clk 0:00:02.8]} 56. hxg5+ {[%clk 0:00:15.1]} 56... Kg6
{[%clk 0:00:03.1]} 57. a7 {[%clk 0:00:15.9]} 57... Rxa7 {[%clk 0:00:01.2]} 58.
Kxa7 {[%clk 0:00:16.8]} 1-0

[Event "*** SCC Grand Prix: Titled Tuesday Blitz"]
[Site "Chess.com"]
[Date "2020.07.14"]
[Round "2"]
[White "Margarita2907"]
[Black "iverichighladze"]
[Result "0-1"]
[WhiteElo "2087"]
[BlackElo "2384"]
[TimeControl "180+1"]
[EndTime "10:18:50 PDT"]
[Termination "iverichighladze won by resignation"]

1. e4 {[%clk 0:03:00.9]} 1... Nf6 {[%clk 0:02:58.7]} 2. e5 {[%clk 0:02:59.3]}
2... Nd5 {[%clk 0:02:58.8]} 3. d4 {[%clk 0:02:59.2]} 3... d6 {[%clk 0:02:58.2]}
4. c4 {[%clk 0:02:59.3]} 4... Nb6 {[%clk 0:02:56.8]} 5. exd6 {[%clk 0:02:58.9]}
5... cxd6 {[%clk 0:02:57]} 6. Nc3 {[%clk 0:02:56.2]} 6... g6 {[%clk 0:02:56.9]}
7. Be3 {[%clk 0:02:55.1]} 7... Bg7 {[%clk 0:02:57.1]} 8. Rc1 {[%clk 0:02:54.5]}
8... O-O {[%clk 0:02:56.7]} 9. b3 {[%clk 0:02:54.2]} 9... Nc6 {[%clk 0:02:56]}
10. d5 {[%clk 0:02:48.3]} 10... Ne5 {[%clk 0:02:55]} 11. Be2 {[%clk 0:02:45]}
11... h5 {[%clk 0:02:54.2]} 12. h3 {[%clk 0:02:34.7]} 12... e6 {[%clk
0:02:53.1]} 13. f4 {[%clk 0:02:31.8]} 13... Qh4+ {[%clk 0:02:52.2]} 14. Kf1
{[%clk 0:02:12.5]} 14... Ng4 {[%clk 0:02:47.5]} 15. Bxg4 {[%clk 0:02:01]} 15...
hxg4 {[%clk 0:02:45.6]} 16. Qxg4 {[%clk 0:01:56.3]} 16... Qxg4 {[%clk
0:02:44.6]} 17. hxg4 {[%clk 0:01:56.6]} 17... exd5 {[%clk 0:02:43.8]} 18. Bxb6
{[%clk 0:01:52.2]} 18... Bxc3 {[%clk 0:02:41.5]} 19. Bc7 {[%clk 0:01:39.4]}
19... d4 {[%clk 0:02:37.5]} 20. Bxd6 {[%clk 0:01:37.7]} 20... Re8 {[%clk
0:02:30.9]} 21. Be5 {[%clk 0:01:37]} 21... f6 {[%clk 0:02:23.2]} 22. Bxf6 {[%clk
0:01:35.3]} 22... Bxg4 {[%clk 0:02:21.5]} 23. Nf3 {[%clk 0:01:31.2]} 23... Bxf3
{[%clk 0:02:19.7]} 24. gxf3 {[%clk 0:01:29.4]} 24... Kf7 {[%clk 0:02:19.3]} 25.
Be5 {[%clk 0:01:28.4]} 25... Rad8 {[%clk 0:02:09.5]} 26. Rh7+ {[%clk 0:01:21.8]}
26... Ke6 {[%clk 0:02:08.2]} 27. Rxb7 {[%clk 0:01:19.9]} 27... g5 {[%clk
0:02:07.3]} 28. Rxa7 {[%clk 0:01:15.1]} 28... gxf4 {[%clk 0:02:06]} 29. Bxf4
{[%clk 0:01:15.1]} 29... Kf5 {[%clk 0:02:05.3]} 30. Rf7+ {[%clk 0:01:08.6]}
30... Kg6 {[%clk 0:02:04.8]} 31. Rc7 {[%clk 0:01:04.6]} 31... Rf8 {[%clk
0:02:02.1]} 32. Bg3 {[%clk 0:00:57]} 32... Rxf3+ {[%clk 0:02:00.8]} 33. Kg2
{[%clk 0:00:57.1]} 33... Re3 {[%clk 0:01:53.9]} 34. Rc6+ {[%clk 0:00:53.6]}
34... Kf5 {[%clk 0:01:49.6]} 35. Rf1+ {[%clk 0:00:51.6]} 35... Ke4 {[%clk
0:01:48.4]} 36. Re6+ {[%clk 0:00:50.5]} 36... Kd3 {[%clk 0:01:47]} 37. Rxe3+
{[%clk 0:00:43.7]} 37... dxe3 {[%clk 0:01:45.1]} 38. Rd1+ {[%clk 0:00:41.4]}
38... Bd2 {[%clk 0:01:44.2]} 39. a4 {[%clk 0:00:31.5]} 39... e2 {[%clk
0:01:38.6]} 40. Ra1 {[%clk 0:00:26.9]} 40... Rg8 {[%clk 0:01:35.7]} 41. Kf3
{[%clk 0:00:20.4]} 41... Rf8+ {[%clk 0:01:29.5]} 42. Kg2 {[%clk 0:00:20.1]}
42... Bc3 {[%clk 0:01:29]} 43. Rb1 {[%clk 0:00:17.8]} 43... Kc2 {[%clk
0:01:26.8]} 44. Rh1 {[%clk 0:00:17.2]} 44... Kxb3 {[%clk 0:01:24.2]} 45. Be1
{[%clk 0:00:16.8]} 45... Bd4 {[%clk 0:01:17.4]} 46. a5 {[%clk 0:00:15]} 46...
Rf6 {[%clk 0:01:14.5]} 47. Rh3+ {[%clk 0:00:12.5]} 47... Kxc4 {[%clk 0:01:13.5]}
48. Rh1 {[%clk 0:00:12.9]} 48... Kd3 {[%clk 0:01:12.5]} 49. Rh3+ {[%clk
0:00:12.5]} 49... Kc2 {[%clk 0:01:11.5]} 50. Rh1 {[%clk 0:00:12.5]} 50... Be3
{[%clk 0:01:04.9]} 51. Bh4 {[%clk 0:00:08.7]} 51... Rf5 {[%clk 0:01:01.2]} 52.
Be1 {[%clk 0:00:08.3]} 52... Bd2 {[%clk 0:01:00]} 53. Bg3 {[%clk 0:00:06.5]}
53... Rxa5 {[%clk 0:00:57.9]} 54. Kf3 {[%clk 0:00:04.6]} 54... Kd3 {[%clk
0:00:56.7]} 55. Kg2 {[%clk 0:00:03.4]} 55... Rf5 {[%clk 0:00:55.5]} 56. Bf2
{[%clk 0:00:03]} 56... Rg5+ {[%clk 0:00:52.4]} 57. Kf3 {[%clk 0:00:03]} 57...
Rf5+ {[%clk 0:00:50]} 58. Kg2 {[%clk 0:00:03.6]} 58... Be3 {[%clk 0:00:49]} 59.
Be1 {[%clk 0:00:03.1]} 59... Kc2 {[%clk 0:00:45.5]} 60. Bg3 {[%clk 0:00:02.7]}
60... Bd2 {[%clk 0:00:44.8]} 61. Be1 {[%clk 0:00:02.7]} 61... Bxe1 {[%clk
0:00:44.1]} 62. Rxe1 {[%clk 0:00:02.8]} 62... Kd2 {[%clk 0:00:43.8]} 0-1